Workbook

Sheet 1. részajánlati kör
B2: mennyiség (m2) | C2: papírminőség | D2: méret | E2: szín | F2: kötészet | K2: Nyomdai kivitelezés díja (nettó Ft/m2) | L2: Nyomdai előkészítés díja (ppt vagy egyéb nem nyomdai kompatibilis grafikai anyag esetén) (nettó Ft) | M2: Egyszerű gafikai tervezés, szerkesztés díja (pályázati arculat alapján 1 komplett tervvariáció) (nettó Ft) | N2: Grafikai tervezés, szerkesztés díja (egyéb arculat alapján 3 komplett tervvariáció) (nettó Ft)
A3: Plakát (1) | B3: 1-től 5-ig | C3: min. 170 g citylight | D3: A0 | E3: 4+0 | F3: vágva | K3: 4288 | L3: 1500 | M3: 4000 | N3: 6000
D4: B1 | K4: 4288
D5: A1 | K5: 4288
D6: A2 | K6: 4288
B7: 6-tól 10-ig | C7: min. 170 g citylight | D7: A0 | E7: 4+0 | F7: vágva | K7: 4088
D8: B1 | K8: 4088
D9: A1 | K9: 4088
D10: A2 | K10: 4088
B11: 10 fölött | C11: min. 170 g citylight | D11: A0 | E11: 4+0 | F11: vágva | K11: 3888
D12: B1 | K12: 3888
D13: A1 | K13: 3888
D14: A2 | K14: 3888
B15: 1-től 5-ig | C15: canvas | D15: A0 | E15: 4+0 | F15: vágva | K15: 7200
D16: B1 | K16: 7200
D17: A1 | K17: 7200
D18: A2 | K18: 7200
B19: 6-tól 10-ig | C19: canvas | D19: A0 | E19: 4+0 | F19: vágva | K19: 7000
D20: B1 | K20: 7000
D21: A1 | K21: 7000
D22: A2 | K22: 7000
B23: 10 fölött | C23: canvas | D23: A0 | E23: 4+0 | F23: vágva | K23: 6800
D24: B1 | K24: 6800
D25: A1 | K25: 6800
D26: A2 | K26: 6800
K27: =SUM(K3:K26) -> 133056 | L27: =SUM(L3) -> 1500 | M27: =SUM(M3) -> 4000 | N27: =SUM(N3) -> 6000
B28: mennyiség (db) | C28: papírminőség | D28: méret | E28: szín | F28: kötészet | K28: Nyomdai kivitelezés díja (nettó Ft/db) | L28: Nyomdai előkészítés díja (ppt vagy egyéb nem nyomdai kompatibilis grafikai anyag esetén) (nettó Ft) | M28: Egyszerű gafikai tervezés, szerkesztés díja (pályázati arculat alapján 1 komplett tervvariáció) (nettó Ft) | N28: Grafikai tervezés, szerkesztés díja (egyéb arculat alapján 3 komplett tervvariáció) (nettó Ft)
A29: Plakát (2) | B29: 1-50 | C29: 150 g fényes | D29: A2 | E29: 4+0 | F29: vágva | K29: 1200 | L29: 1500 | M29: 4000 | N29: 6000
D30: A3 | K30: 145
B31: 100-300 | D31: A2 | E31: 4+0 | F31: vágva | K31: 167
D32: A3 | K32: 95
B33: 301-600 | D33: A2 | E33: 4+0 | F33: vágva | K33: 72
D34: A3 | K34: 42
K35: =SUM(K29:K34) -> 1721 | L35: =SUM(L29) -> 1500 | M35: =SUM(M29) -> 4000 | N35: =SUM(N29) -> 6000
B36: mennyiség (db) | C36: papírminőség | D36: méret | E36: szín | F36: kötészet | K36: Nyomdai kivitelezés díja (nettó Ft/db) | L36: Nyomdai előkészítés díja (ppt vagy egyéb nem nyomdai kompatibilis grafikai anyag esetén) (nettó Ft) | M36: Egyszerű gafikai tervezés, szerkesztés díja (1 komplett tervvariáció) (nettó Ft)
A37: Meghívó | B37: 50-től 150-ig | C37: 300 g/m2 műnyomó | D37: A5 | E37: 4+4 | F37: biegelve, hajtva | K37: 145 | L37: 2000 | M37: 4000
D39: 21*21 cm | E39: 4+4 | F39: biegelve, hajtva | K39: 156
D41: A/4 | E41: 4+4 | F41: biegelve, hajtva, matt fólia 2 oldalon | K41: 210
C43: 300 g galaxy metallics (vanilla) | D43: A/4 | E43: 4+4 | F43: biegelve, hajtva | K43: 224
B44: 151-től 300-ig | C44: 300 g/m2 műnyomó | D44: A5 | E44: 4+4 | F44: biegelve, hajtva | K44: 78
D46: 21*21 cm | E46: 4+4 | F46: biegelve, hajtva | K46: 98
D48: A/4 | E48: 4+4 | F48: biegelve, hajtva, matt fólia 2 oldalon | K48: 151
C50: 300 g galaxy metallics (vanilla) | D50: A/4 | E50: 4+4 | F50: biegelve, hajtva | K50: 162
K51: =SUM(K37:K50) -> 1224 | L51: =SUM(L37) -> 2000 | M51: =SUM(M37) -> 4000
B52: mennyiség (db) | C52: papírminőség | D52: méret | E52: szín | F52: konfekcionálás | K52: Nyomdai kivitelezés díja (nettó Ft/db) | L52: Nyomdai előkészítés díja (ppt vagy egyéb nem nyomdai kompatibilis grafikai anyag esetén) (nettó Ft) | M52: Egyszerű gafikai tervezés, szerkesztés díja (1 komplett tervvariáció) (nettó Ft)
A53: Matrica | B53: 20-tól 250-ig | C53: 184 g/m2 papír öntapadó | D53: 90*40 mm | E53: 4+0 | F53: ritzelve A4 íven szállítva | K53: 259 | L53: 500 | M53: 500
B54: 251-től 500-ig | C54: 184 g/m2 papír öntapadó | D54: 90*40 mm | E54: 4+0 | F54: ritzelve A4 íven szállítva | K54: 26
K55: =SUM(K53:K54) -> 285 | L55: =SUM(L53) -> 500 | M55: =SUM(M53) -> 500
B56: mennyiség (db) | C56: papírminőség | D56: méret | E56: szín | F56: terjedelem | G56: kötészet | K56: Nyomdai kivitelezés díja (nettó Ft/össz. db) | L56: Nyomdai előkészítés díja (nem nyomdai kompatibilis grafikai anyag esetén) (nettó Ft) | M56: Egyszerű grafikai tervezés (borító + 1 oldalpár) pályázati arculat alapján 1 komplett tervvariáció díja (nettó Ft) | N56: Grafikai tervezés (borító + 1 oldalpár) egyéb arculat alapján 3 komplett tervvariáció díja (nettó Ft) | O56: Tördelés-szerkesztés egyszerű 2 elektronikus korrektúraforduló lebonyolításával (nettó Ft/össz. oldal) | P56: Tördelés-szerkesztés összetett 2 elektronikus korrektúraforduló lebonyolításával (nettó Ft/össz. oldal)
A57: Kiadvány (1) | B57: 100 | C57: borító: 250 g műnyomó belív: 90 g műnyomó | D57: A/5 | E57: bor: 4+4 belív: 1+1 fekete | F57: 4 old | G57: hajtva | K57: 3550 | L57: 4000 | M57: 5000 | N57: 15000 | O57: 1600 | P57: 1760
F58: bor+8 old | G58: irkafűzve | K58: 15700 | O58: 4000 | P58: 4400
F59: bor+16 old | G59: irkafűzve | K59: 17300 | O59: 7200 | P59: 7920
F60: bor+24 old | G60: irkafűzve | K60: 20300 | O60: 10400 | P60: 11440
F61: bor+32 old | G61: irkafűzve | K61: 22200 | O61: 13600 | P61: 14960
F62: bor+36 old | G62: irkafűzve | K62: 23300 | O62: 15200 | P62: 16720
F63: bor+44 old | G63: irkafűzve | K63: 25300 | O63: 18400 | P63: 20240
F64: bor+52 old | G64: irkafűzve | K64: 27300 | O64: 21600 | P64: 23760
F65: bor+60 old | G65: irkafűzve | K65: 29100 | O65: 24800 | P65: 27280
E66: bor: 4+4 belív: 4+4 | F66: 4 old | G66: hajtva | K66: 6000 | O66: 2000 | P66: 2200
F67: bor+8 old | G67: irkafűzve | K67: 25200 | O67: 5000 | P67: 5500
F68: bor+16 old | G68: irkafűzve | K68: 35100 | O68: 9000 | P68: 9900
F69: bor+24 old | G69: irkafűzve | K69: 43900 | O69: 13000 | P69: 14300
F70: bor+32 old | G70: irkafűzve | K70: 51300 | O70: 17000 | P70: 18700
F71: bor+36 old | G71: irkafűzve | K71: 53600 | O71: 19000 | P71: 20900
F72: bor+44 old | G72: irkafűzve | K72: 61000 | O72: 23000 | P72: 25300
F73: bor+52 old | G73: irkafűzve | K73: 69000 | O73: 27000 | P73: 29700
F74: bor+60 old | G74: irkafűzve | K74: 73000 | O74: 31000 | P74: 34100
D75: VB5 mérettől függetlenül | E75: bor: 4+4 belív: 1+1 fekete | F75: 4 old | G75: hajtva | K75: 4085 | O75: 1600 | P75: 1760
F76: bor+8 old | G76: irkafűzve | K76: 18145 | O76: 4000 | P76: 4400
F77: bor+16 old | G77: irkafűzve | K77: 20425 | O77: 7200 | P77: 7920
F78: bor+24 old | G78: irkafűzve | K78: 22325 | O78: 10400 | P78: 11440
F79: bor+32 old | G79: irkafűzve | K79: 24130 | O79: 13600 | P79: 14960
F80: bor+36 old | G80: irkafűzve | K80: 25270 | O80: 15200 | P80: 16720
F81: bor+44 old | G81: irkafűzve | K81: 28310 | O81: 18400 | P81: 20240
F82: bor+52 old | G82: irkafűzve | K82: 29735 | O82: 21600 | P82: 23760
F83: bor+60 old | G83: irkafűzve | K83: 32490 | O83: 24800 | P83: 27280
E84: bor: 4+4 belív: 4+4 | F84: 4 old | G84: hajtva | K84: 11590 | O84: 2000 | P84: 2200
F85: bor+8 old | G85: irkafűzve | K85: 30400 | O85: 5000 | P85: 5500
F86: bor+16 old | G86: irkafűzve | K86: 41325 | O86: 9000 | P86: 9900
F87: bor+24 old | G87: irkafűzve | K87: 52250 | O87: 13000 | P87: 14300
F88: bor+32 old | G88: irkafűzve | K88: 61750 | O88: 17000 | P88: 18700
F89: bor+36 old | G89: irkafűzve | K89: 68400 | O89: 19000 | P89: 20900
F90: bor+44 old | G90: irkafűzve | K90: 79800 | O90: 23000 | P90: 25300
F91: bor+52 old | G91: irkafűzve | K91: 90250 | O91: 27000 | P91: 29700
F92: bor+60 old | G92: irkafűzve | K92: 100700 | O92: 31000 | P92: 34100
D93: A/4 | E93: bor: 4+4 belív: 1+1 fekete | F93: 4 old | G93: hajtva | K93: 4750 | O93: 1600 | P93: 1760
F94: bor+8 old | G94: irkafűzve | K94: 19380 | O94: 4000 | P94: 4400
F95: bor+16 old | G95: irkafűzve | K95: 22800 | O95: 7200 | P95: 7920
F96: bor+32 old | G96: irkafűzve | K96: 28880 | O96: 13600 | P96: 14960
F97: bor+44 old | G97: irkafűzve | K97: 33250 | O97: 18400 | P97: 20240
E98: bor: 4+4 belív: 4+4 | F98: 4 old | G98: hajtva | K98: 12350 | O98: 2000 | P98: 2200
F99: bor+8 old | G99: irkafűzve | K99: 33630 | O99: 5000 | P99: 5500
F100: bor+16 old | G100: irkafűzve | K100: 48450 | O100: 9000 | P100: 9900
F101: bor+32 old | G101: irkafűzve | K101: 91770 | O101: 17000 | P101: 18700
F102: bor+44 old | G102: irkafűzve | K102: 101175 | O102: 23000 | P102: 25300
B103: 200 | C103: borító: 250 g műnyomó belív: 90 g műnyomó | D103: A/5 | E103: bor: 4+4 belív: 1+1 fekete | F103: 4 old | G103: hajtva | K103: 4400 | O103: 1600 | P103: 1760
F104: bor+8 old | G104: irkafűzve | K104: 20000 | O104: 4000 | P104: 4400
F105: bor+16 old | G105: irkafűzve | K105: 24600 | O105: 7200 | P105: 7920
F106: bor+24 old | G106: irkafűzve | K106: 28600 | O106: 10400 | P106: 11440
F107: bor+32 old | G107: irkafűzve | K107: 32000 | O107: 13600 | P107: 14960
F108: bor+36 old | G108: irkafűzve | K108: 33600 | O108: 15200 | P108: 16720
F109: bor+44 old | G109: irkafűzve | K109: 36400 | O109: 18400 | P109: 20240
F110: bor+52 old | G110: irkafűzve | K110: 38800 | O110: 21600 | P110: 23760
F111: bor+60 old | G111: irkafűzve | K111: 41200 | O111: 24800 | P111: 27280
E112: bor: 4+4 belív: 4+4 | F112: 4 old | G112: hajtva | K112: 9800 | O112: 2000 | P112: 2200
F113: bor+8 old | G113: irkafűzve | K113: 37000 | O113: 5000 | P113: 5500
F114: bor+16 old | G114: irkafűzve | K114: 56200 | O114: 9000 | P114: 9900
F115: bor+24 old | G115: irkafűzve | K115: 64000 | O115: 13000 | P115: 14300
F116: bor+32 old | G116: irkafűzve | K116: 78000 | O116: 17000 | P116: 18700
F117: bor+36 old | G117: irkafűzve | K117: 86000 | O117: 19000 | P117: 20900
F118: bor+44 old | G118: irkafűzve | K118: 108000 | O118: 23000 | P118: 25300
F119: bor+52 old | G119: irkafűzve | K119: 124000 | O119: 27000 | P119: 29700
F120: bor+60 old | G120: irkafűzve | K120: 139000 | O120: 31000 | P120: 34100
D121: VB5 mérettől függetlenül | E121: bor: 4+4 belív: 1+1 fekete | F121: 4 old | G121: hajtva | K121: 6080 | O121: 1600 | P121: 1760
F122: bor+8 old | G122: irkafűzve | K122: 29640 | O122: 4000 | P122: 4400
F123: bor+16 old | G123: irkafűzve | K123: 34010 | O123: 7200 | P123: 7920
F124: bor+24 old | G124: irkafűzve | K124: 38950 | O124: 10400 | P124: 11440
F125: bor+32 old | G125: irkafűzve | K125: 42940 | O125: 13600 | P125: 14960
F126: bor+36 old | G126: irkafűzve | K126: 44840 | O126: 15200 | P126: 16720
F127: bor+44 old | G127: irkafűzve | K127: 48070 | O127: 18400 | P127: 20240
F128: bor+52 old | G128: irkafűzve | K128: 51110 | O128: 21600 | P128: 23760
F129: bor+60 old | G129: irkafűzve | K129: 55100 | O129: 24800 | P129: 27280
E130: bor: 4+4 belív: 4+4 | F130: 4 old | G130: hajtva | K130: 16530 | O130: 2000 | P130: 2200
F131: bor+8 old | G131: irkafűzve | K131: 44650 | O131: 5000 | P131: 5500
F132: bor+16 old | G132: irkafűzve | K132: 57380 | O132: 9000 | P132: 9900
F133: bor+24 old | G133: irkafűzve | K133: 75430 | O133: 13000 | P133: 14300
F134: bor+32 old | G134: irkafűzve | K134: 86070 | O134: 17000 | P134: 18700
F135: bor+36 old | G135: irkafűzve | K135: 103360 | O135: 19000 | P135: 20900
F136: bor+44 old | G136: irkafűzve | K136: 116090 | O136: 23000 | P136: 25300
F137: bor+52 old | G137: irkafűzve | K137: 133570 | O137: 27000 | P137: 29700
F138: bor+60 old | G138: irkafűzve | K138: 145920 | O138: 31000 | P138: 34100
D139: A/4 | E139: bor: 4+4 belív: 1+1 fekete | F139: 4 old | G139: hajtva | K139: 7220 | O139: 1600 | P139: 1760
F140: bor+8 old | G140: irkafűzve | K140: 30400 | O140: 4000 | P140: 4400
F141: bor+16 old | G141: irkafűzve | K141: 37050 | O141: 7200 | P141: 7920
F142: bor+32 old | G142: irkafűzve | K142: 48260 | O142: 13600 | P142: 14960
F143: bor+44 old | G143: irkafűzve | K143: 54150 | O143: 18400 | P143: 20240
E144: bor: 4+4 belív: 4+4 | F144: 4 old | G144: hajtva | K144: 17480 | O144: 2000 | P144: 2200
F145: bor+8 old | G145: irkafűzve | K145: 54720 | O145: 5000 | P145: 5500
F146: bor+16 old | G146: irkafűzve | K146: 84550 | O146: 9000 | P146: 9900
F147: bor+32 old | G147: irkafűzve | K147: 14345 | O147: 17000 | P147: 18700
F148: bor+44 old | G148: irkafűzve | K148: 190000 | O148: 23000 | P148: 25300
B149: 300 | C149: borító: 250 g műnyomó belív: 90 g műnyomó | D149: A/5 | E149: bor: 4+4 belív: 1+1 fekete | F149: 4 old | G149: hajtva | K149: 5310 | O149: 1600 | P149: 1760
F150: bor+8 old | G150: irkafűzve | K150: 26700 | O150: 4000 | P150: 4400
F151: bor+16 old | G151: irkafűzve | K151: 31200 | O151: 7200 | P151: 7920
F152: bor+24 old | G152: irkafűzve | K152: 36600 | O152: 10400 | P152: 11440
F153: bor+32 old | G153: irkafűzve | K153: 40500 | O153: 13600 | P153: 14960
F154: bor+36 old | G154: irkafűzve | K154: 42600 | O154: 15200 | P154: 16720
F155: bor+44 old | G155: irkafűzve | K155: 45900 | O155: 18400 | P155: 20240
F156: bor+52 old | G156: irkafűzve | K156: 48600 | O156: 21600 | P156: 23760
F157: bor+60 old | G157: irkafűzve | K157: 51000 | O157: 24800 | P157: 27280
E158: bor: 4+4 belív: 4+4 | F158: 4 old | G158: hajtva | H158: * | K158: 13200 | O158: 2000 | P158: 2200
F159: bor+8 old | G159: irkafűzve | K159: 48900 | O159: 5000 | P159: 5500
F160: bor+16 old | G160: irkafűzve | K160: 69000 | O160: 9000 | P160: 9900
F161: bor+24 old | G161: irkafűzve | K161: 90000 | O161: 13000 | P161: 14300
F162: bor+32 old | G162: irkafűzve | K162: 111000 | O162: 17000 | P162: 18700
F163: bor+36 old | G163: irkafűzve | K163: 120000 | O163: 19000 | P163: 20900
F164: bor+44 old | G164: irkafűzve | K164: 153000 | O164: 23000 | P164: 25300
F165: bor+52 old | G165: irkafűzve | K165: 174000 | O165: 27000 | P165: 29700
F166: bor+60 old | G166: irkafűzve | K166: 198000 | O166: 31000 | P166: 34100
D167: VB5 mérettől függetlenül | E167: bor: 4+4 belív: 1+1 fekete | F167: 4 old | G167: hajtva | K167: 8265 | O167: 1600 | P167: 1760
F168: bor+8 old | G168: irkafűzve | K168: 30780 | O168: 4000 | P168: 4400
F169: bor+16 old | G169: irkafűzve | K169: 37335 | O169: 7200 | P169: 7920
F170: bor+24 old | G170: irkafűzve | K170: 44460 | O170: 10400 | P170: 11440
F171: bor+32 old | G171: irkafűzve | K171: 49875 | O171: 13600 | P171: 14960
F172: bor+36 old | G172: irkafűzve | K172: 52155 | O172: 15200 | P172: 16720
F173: bor+44 old | G173: irkafűzve | H173: * | K173: 57000 | O173: 18400 | P173: 20240
F174: bor+52 old | G174: irkafűzve | K174: 61275 | O174: 21600 | P174: 23760
F175: bor+60 old | G175: irkafűzve | K175: 65550 | O175: 24800 | P175: 27280
E176: bor: 4+4 belív: 4+4 | F176: 4 old | G176: hajtva | K176: 16815 | O176: 2000 | P176: 2200
F177: bor+8 old | G177: irkafűzve | K177: 42465 | O177: 5000 | P177: 5500
F178: bor+16 old | G178: irkafűzve | K178: 57000 | O178: 9000 | P178: 9900
F179: bor+24 old | G179: irkafűzve | K179: 75525 | O179: 13000 | P179: 14300
F180: bor+32 old | G180: irkafűzve | K180: 88350 | O180: 17000 | P180: 18700
F181: bor+36 old | G181: irkafűzve | K181: 103170 | O181: 19000 | P181: 20900
F182: bor+44 old | G182: irkafűzve | K182: 121695 | O182: 23000 | P182: 25300
F183: bor+52 old | G183: irkafűzve | K183: 134520 | O183: 27000 | P183: 29700
F184: bor+60 old | G184: irkafűzve | K184: 153045 | O184: 31000 | P184: 34100
D185: A/4 | E185: bor: 4+4 belív: 1+1 fekete | F185: 4 old | G185: hajtva | K185: 8835 | O185: 1600 | P185: 1760
F186: bor+8 old | G186: irkafűzve | K186: 41610 | O186: 4000 | P186: 4400
F187: bor+16 old | G187: irkafűzve | K187: 49020 | O187: 7200 | P187: 7920
F188: bor+32 old | G188: irkafűzve | K188: 62700 | O188: 13600 | P188: 14960
F189: bor+44 old | G189: irkafűzve | K189: 73815 | O189: 18400 | P189: 20240
E190: bor: 4+4 belív: 4+4 | F190: 4 old | G190: hajtva | K190: 23370 | O190: 2000 | P190: 2200
F191: bor+8 old | G191: irkafűzve | K191: 64410 | O191: 5000 | P191: 5500
F192: bor+16 old | G192: irkafűzve | K192: 94050 | O192: 9000 | P192: 9900
F193: bor+32 old | G193: irkafűzve | K193: 154470 | O193: 17000 | P193: 18700
F194: bor+44 old | G194: irkafűzve | K194: 202920 | O194: 23000 | P194: 25300
B195: 400 | C195: borító: 250 g műnyomó belív: 90 g műnyomó | D195: A/5 | E195: bor: 4+4 belív: 1+1 fekete | F195: 4 old | G195: hajtva | K195: 6200 | O195: 1600 | P195: 1760
F196: bor+8 old | G196: irkafűzve | K196: 33600 | O196: 4000 | P196: 4400
F197: bor+16 old | G197: irkafűzve | K197: 37600 | O197: 7200 | P197: 7920
F198: bor+24 old | G198: irkafűzve | K198: 42800 | O198: 10400 | P198: 11440
F199: bor+32 old | G199: irkafűzve | K199: 47600 | O199: 13600 | P199: 14960
F200: bor+36 old | G200: irkafűzve | K200: 49600 | O200: 15200 | P200: 16720
F201: bor+44 old | G201: irkafűzve | K201: 52800 | O201: 18400 | P201: 20240
F202: bor+52 old | G202: irkafűzve | K202: 56800 | O202: 21600 | P202: 23760
F203: bor+60 old | G203: irkafűzve | K203: 62000 | O203: 24800 | P203: 27280
E204: bor: 4+4 belív: 4+4 | F204: 4 old | G204: hajtva | K204: 16000 | O204: 2000 | P204: 2200
F205: bor+8 old | G205: irkafűzve | K205: 62000 | O205: 5000 | P205: 5500
F206: bor+16 old | G206: irkafűzve | K206: 92000 | O206: 9000 | P206: 9900
F207: bor+24 old | G207: irkafűzve | K207: 116800 | O207: 13000 | P207: 14300
... 717 more rows

Sheet 2. részajánlati kör
A1: Boríték | B1: mennyiség (db) | C1: papírminőség | D1: méret | E1: szín | F1: megjegyzés | I1: Nyomdai kivitelezés díja (nettó Ft/össz. db) | J1: Nyomdai előkészítés díja (ppt vagy egyéb nem nyomdai kompatibilis grafikai anyag esetén (nettó Ft) | K1: Egyszerű gafikai tervezés, szerkesztés díja (pályázati arculat alapján 1 komplett tervvariáció) (nettó Ft) | L1: Gafikai tervezés, szerkesztés díja (egyéb arculat alapján 3 komplett tervvariáció) (nettó Ft)
B2: 100 | C2: gépi feldolgozásra alkalmas, szilikonos | D2: 114*229 mm | E2: 4+0 | F2: a borítékon a nyomat nem kifutós | I2: 12500 | J2: 1000 | K2: 2500 | L2: 2500
B3: 200 | C3: gépi feldolgozásra alkalmas, szilikonos | D3: 114*229 mm | E3: 4+0 | F3: a borítékon a nyomat nem kifutós | I3: 12800
B4: 300 | C4: gépi feldolgozásra alkalmas, szilikonos | D4: 114*229 mm | E4: 4+0 | F4: a borítékon a nyomat nem kifutós | I4: 13500
B5: 500 | C5: gépi feldolgozásra alkalmas, szilikonos | D5: 114*229 mm | E5: 4+0 | F5: a borítékon a nyomat nem kifutós | I5: 15000
B6: 1000 | C6: gépi feldolgozásra alkalmas, szilikonos | D6: 114*229 mm | E6: 4+0 | F6: a borítékon a nyomat nem kifutós | I6: 18500
I7: =SUM(I2:I6) -> 72300 | J7: =SUM(J2) -> 1000 | K7: =SUM(K2) -> 2500 | L7: =SUM(L2) -> 2500
A8: Keménytáblás kiadvány | B8: mennyiség (db) | C8: papírminőség | D8: méret | E8: szín | F8: terjedelem | G8: kötészet | I8: Nyomdai kivitelezés díja (nettó Ft/össz. db) | J8: Nyomdai előkészítés díja (nem nyomdai kompatibilis grafikai anyag esetén (nettó Ft) | K8: Egyszerű grafikai tervezés (borító + 1 oldalpár) pályázati arculat alapján 1 komplett tervvariáció díja (nettó Ft) | L8: Grafikai tervezés (borító + 1 oldalpár) egyéb arculat alapján 3 komplett tervvariáció díja (nettó Ft) | M8: Tördelés-szerkesztés egyszerű, 2 elektronikus korrektúraforduló lebonyolításával (nettó Ft/össz. oldal) | N8: Tördelés-szerkesztés összetett, 2 elektronikus korrektúraforduló lebonyolításával (nettó Ft/össz. oldal)
B9: 100 | C9: Borító 135 g/m2 műnyomó Belív 80 g/m2 ofszet Táblalemez 1400 g 2 mm-es Előzék 140 g/m2 ofszet | D9: Vágott B/5 (mérettől függetlenül) | E9: Borító 4+0 Belív 1+1 fekete Táblalemez 0+0 Előzék 0+0 | F9: 160 old. Belív + 4 old. Borító + 4 old. Táblalemez + 2*4 old. Előzék | G9: cérnafűzött, egyenes hát, borító fényes fóliázva | I9: 190500 | J9: 8000 | K9: 10000 | L9: 15000 | M9: 40000 | N9: 45000
C10: Borító 135 g/m2 műnyomó Belív 135 g/m2 műnyomó Táblalemez 1400 g 2 mm-es Előzék 140 g/m2 ofszet | E10: Borító 4+0 Belív 4+4 Táblalemez 0+0 Előzék 4+0 | I10: 366000
B11: 300 | C11: Borító 135 g/m2 műnyomó Belív 80 g/m2 ofszet Táblalemez 1400 g 2 mm-es Előzék 140 g/m2 ofszet | D11: Vágott B/5 (mérettől függetlenül) | E11: Borító 4+0 Belív 1+1 fekete Táblalemez 0+0 Előzék 0+0 | F11: 160 old. Belív + 4 old. Borító + 4 old. Táblalemez + 2*4 old. Előzék | I11: 285600
C12: Borító 135 g/m2 műnyomó Belív 135 g/m2 műnyomó Táblalemez 1400 g 2 mm-es Előzék 140 g/m2 ofszet | E12: Borító 4+0 Belív 4+4 Táblalemez 0+0 Előzék 4+0 | I12: 498000
I13: =SUM(I9:I12) -> 1340100 | J13: =SUM(J9) -> 8000 | K13: =SUM(K9) -> 10000 | L13: =SUM(L9) -> 15000 | M13: =SUM(M9:M12) -> 40000 | N13: =SUM(N9:N12) -> 45000
A14: Kiadvány (1) | B14: mennyiség (db) | C14: papírminőség | D14: méret | E14: szín | F14: terjedelem | G14: kötészet | I14: Nyomdai kivitelezés díja (nettó Ft/össz. db) | J14: Nyomdai előkészítés díja (nem nyomdai kompatibilis grafikai anyag esetén (nettó Ft) | K14: Egyszerű grafikai tervezés (borító + 1 oldalpár) pályázati arculat alapján 1 komplett tervvariáció díja (nettó Ft) | L14: Grafikai tervezés (borító + 1 oldalpár) egyéb arculat alapján 3 komplett tervvariáció díja (nettó Ft) | M14: Tördelés-szerkesztés egyszerű, 2 elektronikus korrektúraforduló lebonyolításával (nettó Ft/össz. oldal) | N14: Tördelés-szerkesztés összetett, 2 elektronikus korrektúraforduló lebonyolításával (nettó Ft/össz. oldal)
B15: 300 | C15: 80 g/m2 ofszet | D15: A/4 | E15: 1+1 (fekete) | F15: 12 oldal | G15: irkafűzve | I15: 15330 | J15: 4000 | K15: 5000 | L15: 15000 | M15: 900 | N15: 990
F16: 36 oldal | I16: 36750 | M16: 3400 | N16: 3740
F17: 56 oldal | I17: 53670 | M17: 5400 | N17: 5940
B18: 500 | C18: 80 g/m2 ofszet | D18: A/4 | E18: 1+1 (fekete) | F18: 12 oldal | G18: irkafűzve | I18: 22300 | M18: 900 | N18: 990
F19: 36 oldal | I19: 55700 | M19: 3400 | N19: 3740
F20: 56 oldal | I20: 83650 | M20: 5400 | N20: 5940
I21: =SUM(I15:I20) -> 267400 | J21: =SUM(J15) -> 4000 | K21: =SUM(K15) -> 5000 | L21: =SUM(L15) -> 15000 | M21: =SUM(M15:M20) -> 19400 | N21: =SUM(N15:N20) -> 21340
A22: Kiadvány (2) | B22: mennyiség (db) | C22: papírminőség | D22: méret | E22: szín | F22: terjedelem | G22: kötészet | I22: Nyomdai kivitelezés díja (nettó Ft/össz. db) | J22: Nyomdai előkészítés díja (nem nyomdai kompatibilis grafikai anyag esetén (nettó Ft) | K22: Egyszerű grafikai tervezés (borító + 1 oldalpár) pályázati arculat alapján 1 komplett tervvariáció díja (nettó Ft) | L22: Grafikai tervezés (borító + 1 oldalpár) egyéb arculat alapján 3 komplett tervvariáció díja (nettó Ft) | M22: Tördelés-szerkesztés egyszerű, 2 elektronikus korrektúraforduló lebonyolításával (nettó Ft/össz. oldal) | N22: Tördelés-szerkesztés összetett, 2 elektronikus korrektúraforduló lebonyolításával (nettó Ft/össz. oldal)
B23: 300 | C23: 130 g/m2 műnyomó | D23: A4 | E23: 1+1 fekete | F23: 8 oldal | G23: irkafűzve | I23: 13140 | J23: 4000 | K23: 5000 | L23: 15000 | M23: 5000 | N23: 6000
E24: 4+4 | I24: 38640
B25: 500 | C25: 130 g/m2 műnyomó | D25: A4 | E25: 1+1 fekete | F25: 8 oldal | G25: irkafűzve | I25: 18750
E26: 4+4 | I26: 40900
B27: 1000 | C27: 130 g/m2 műnyomó | D27: A4 | E27: 1+1 fekete | F27: 8 oldal | G27: irkafűzve | I27: 32700
E28: 4+4 | I28: 48200
I29: =SUM(I23:I28) -> 192330 | J29: =SUM(J23) -> 4000 | K29: =SUM(K23) -> 5000 | L29: =SUM(L23) -> 15000 | M29: =SUM(M23:M28) -> 5000 | N29: =SUM(N23:N28) -> 6000
B30: mennyiség (db) | C30: papírminőség | D30: méret | E30: szín | F30: terjedelem | G30: konfekcionálás | H30: kötészet | I30: Nyomdai kivitelezés díja (nettó Ft/össz. db) | J30: Nyomdai előkészítés díja (nem nyomdai kompatibilis grafikai anyag esetén (nettó Ft) | K30: Egyszerű grafikai tervezés (borító + 1 oldalpár) pályázati arculat alapján 1 komplett tervvariáció díja (nettó Ft) | L30: Grafikai tervezés (borító + 1 oldalpár) egyéb arculat alapján 3 komplett tervvariáció díja (nettó Ft) | M30: Tördelés-szerkesztés egyszerű, 2 elektronikus korrektúraforduló lebonyolításával (nettó Ft/össz. oldal) | N30: Tördelés-szerkesztés összetett, 2 elektronikus korrektúraforduló lebonyolításával (nettó Ft/össz. oldal)
B31: 100 | C31: Borító 300 g/m2 műnyomó Belív 80 g/m2 ofszet | D31: A/4 | E31: Borító 4+4 Belív 1+1 fekete | F31: 52 oldal belív + 4 oldal borító | G31: - | H31: irkafűzve | I31: 34740 | J31: 4000 | K31: 5000 | L31: 10000 | M31: 10400 | N31: 12480
G32: borító fóliázva | H32: irkafűzve | I32: 39790
G33: borító fóliázva + UV lakk egy oldalon | H33: irkafűzve | I33: 63300
F34: 156 oldal belív + 4 oldal borító | G34: - | H34: ragasztókötés | I34: 75400 | M34: 30800 | N34: 36960
G35: borító fóliázva | H35: ragasztókötés | I35: 80900
G36: borító fóliázva + UV lakk egy oldalon | H36: ragasztókötés | I36: 105400
D37: A/4 | E37: Borító 4+4 Belív 4+4 | F37: 52 oldal belív + 4 oldal borító | G37: - | H37: irkafűzve | I37: 98000 | M37: 13000 | N37: 15600
G38: borító fóliázva | H38: irkafűzve | I38: 102300
G39: borító fóliázva + UV lakk egy oldalon | H39: irkafűzve | I39: 121400
F40: 156 oldal belív + 4 oldal borító | G40: - | H40: ragasztókötés | I40: 298500 | M40: 38500 | N40: 46200
G41: borító fóliázva | H41: ragasztókötés | I41: 304000
G42: borító fóliázva + UV lakk egy oldalon | H42: ragasztókötés | I42: 325000
D43: A/5 | E43: Borító 4+4 Belív 1+1 fekete | F43: 52 oldal belív + 4 oldal borító | G43: - | H43: irkafűzve | I43: 21380 | M43: 5200 | N43: 6240
G44: borító fóliázva | H44: irkafűzve | I44: 24130
G45: borító fóliázva + UV lakk egy oldalon | H45: irkafűzve | I45: 42200
F46: 156 oldal belív + 4 oldal borító | G46: - | H46: ragasztókötés | I46: 42490 | M46: 15400 | N46: 18480
G47: borító fóliázva | H47: ragasztókötés | I47: 45240
G48: borító fóliázva + UV lakk egy oldalon | H48: ragasztókötés | I48: 75560
D49: A/5 | E49: Borító 4+4 Belív 4+4 | F49: 52 oldal belív + 4 oldal borító | G49: - | H49: irkafűzve | I49: 56400 | M49: 7800 | N49: 9360
G50: borító fóliázva | H50: irkafűzve | I50: 59500
G51: borító fóliázva + UV lakk egy oldalon | H51: irkafűzve | I51: 75000
F52: 156 oldal belív + 4 oldal borító | G52: - | H52: ragasztókötés | I52: 159000 | M52: 23100 | N52: 27720
G53: borító fóliázva | H53: ragasztókötés | I53: 163000
G54: borító fóliázva + UV lakk egy oldalon | H54: ragasztókötés | I54: 188000
B55: 300 | C55: Borító 300 g/m2 műnyomó Belív 80 g/m2 ofszet | D55: A/4 | E55: Borító 4+4 Belív 1+1 fekete | F55: 52 oldal belív + 4 oldal borító | G55: - | H55: irkafűzve | I55: 81990 | M55: 10400 | N55: 12480
G56: borító fóliázva | H56: irkafűzve | I56: 85950
G57: borító fóliázva + UV lakk egy oldalon | H57: irkafűzve | I57: 101880
F58: 156 oldal belív + 4 oldal borító | G58: - | H58: ragasztókötés | I58: 178770 | M58: 30800 | N58: 36960
G59: borító fóliázva | H59: ragasztókötés | I59: 182040
G60: borító fóliázva + UV lakk egy oldalon | H60: ragasztókötés | I60: 198990
D61: A/4 | E61: Borító 4+4 Belív 4+4 | F61: 52 oldal belív + 4 oldal borító | G61: - | H61: irkafűzve | I61: 240000 | M61: 13000 | N61: 15600
G62: borító fóliázva | H62: irkafűzve | I62: 249000
G63: borító fóliázva + UV lakk egy oldalon | H63: irkafűzve | I63: 267000
F64: 156 oldal belív + 4 oldal borító | G64: - | H64: ragasztókötés | I64: 647910 | M64: 38500 | N64: 46200
G65: borító fóliázva | H65: ragasztókötés | I65: 653160
G66: borító fóliázva + UV lakk egy oldalon | H66: ragasztókötés | I66: 669990
D67: A/5 | E67: Borító 4+4 Belív 1+1 fekete | F67: 52 oldal belív + 4 oldal borító | G67: - | H67: irkafűzve | I67: 46590 | M67: 5200 | N67: 6240
G68: borító fóliázva | H68: irkafűzve | I68: 54330
G69: borító fóliázva + UV lakk egy oldalon | H69: irkafűzve | I69: 72300
F70: 156 oldal belív + 4 oldal borító | G70: - | H70: ragasztókötés | I70: 102210 | M70: 15400 | N70: 18480
G71: borító fóliázva | H71: ragasztókötés | I71: 109950
G72: borító fóliázva + UV lakk egy oldalon | H72: ragasztókötés | I72: 128670
D73: A/5 | E73: Borító 4+4 Belív 4+4 | F73: 52 oldal belív + 4 oldal borító | G73: - | H73: irkafűzve | I73: 42200 | M73: 7800 | N73: 9360
G74: borító fóliázva | H74: irkafűzve | I74: 139500
G75: borító fóliázva + UV lakk egy oldalon | H75: irkafűzve | I75: 158100
F76: 156 oldal belív + 4 oldal borító | G76: - | H76: ragasztókötés | I76: 342210 | M76: 23100 | N76: 27720
G77: borító fóliázva | H77: ragasztókötés | I77: 349620
G78: borító fóliázva + UV lakk egy oldalon | H78: ragasztókötés | I78: 368250
B79: 500 | C79: Borító 300 g/m2 műnyomó Belív 80 g/m2 ofszet | D79: A/4 | E79: Borító 4+4 Belív 1+1 fekete | F79: 52 oldal belív + 4 oldal borító | G79: - | H79: irkafűzve | I79: 115400 | M79: 10400 | N79: 12480
G80: borító fóliázva | H80: irkafűzve | I80: 121150
G81: borító fóliázva + UV lakk egy oldalon | H81: irkafűzve | I81: 140900
F82: 156 oldal belív + 4 oldal borító | G82: - | H82: ragasztókötés | I82: 264000 | M82: 30800 | N82: 36960
G83: borító fóliázva | H83: ragasztókötés | I83: 270000
G84: borító fóliázva + UV lakk egy oldalon | H84: ragasztókötés | I84: 298350
D85: A/4 | E85: Borító 4+4 Belív 4+4 | F85: 52 oldal belív + 4 oldal borító | G85: - | H85: irkafűzve | I85: 264500 | M85: 13000 | N85: 15600
G86: borító fóliázva | H86: irkafűzve | I86: 272000
G87: borító fóliázva + UV lakk egy oldalon | H87: irkafűzve | I87: 293500
F88: 156 oldal belív + 4 oldal borító | G88: - | H88: ragasztókötés | I88: 689200 | M88: 38500 | N88: 46200
G89: borító fóliázva | H89: ragasztókötés | I89: 697050
G90: borító fóliázva + UV lakk egy oldalon | H90: ragasztókötés | I90: 720150
D91: A/5 | E91: Borító 4+4 Belív 1+1 fekete | F91: 52 oldal belív + 4 oldal borító | G91: - | H91: irkafűzve | I91: 64050 | M91: 5200 | N91: 6240
G92: borító fóliázva | H92: irkafűzve | I92: 76450
G93: borító fóliázva + UV lakk egy oldalon | H93: irkafűzve | I93: 91650
F94: 156 oldal belív + 4 oldal borító | G94: - | H94: ragasztókötés | I94: 159350 | M94: 15400 | N94: 18480
G95: borító fóliázva | H95: ragasztókötés | I95: 162450
G96: borító fóliázva + UV lakk egy oldalon | H96: ragasztókötés | I96: 128300
D97: A/5 | E97: Borító 4+4 Belív 4+4 | F97: 52 oldal belív + 4 oldal borító | G97: - | H97: irkafűzve | I97: 144500 | M97: 7800 | N97: 9360
G98: borító fóliázva | H98: irkafűzve | I98: 159500
G99: borító fóliázva + UV lakk egy oldalon | H99: irkafűzve | I99: 177000
F100: 156 oldal belív + 4 oldal borító | G100: - | H100: ragasztókötés | I100: 371250 | M100: 23100 | N100: 27720
G101: borító fóliázva | H101: ragasztókötés | I101: 374000
G102: borító fóliázva + UV lakk egy oldalon | H102: ragasztókötés | I102: 389800
I103: =SUM(I31:I102) -> 14515740 | J103: =SUM(J31) -> 4000 | K103: =SUM(K31) -> 5000 | L103: =SUM(L31) -> 10000 | M103: =SUM(M31:M102) -> 432600 | N103: =SUM(N31:N102) -> 519120
B104: mennyiség (db) | C104: papírminőség | D104: méret | E104: szín | F104: terjedelem | G104: kötészet | I104: Nyomdai kivitelezés díja (nettó Ft/össz. db) | J104: Nyomdai előkészítés díja (nem nyomdai kompatibilis grafikai anyag esetén (nettó Ft) | K104: Egyszerű grafikai tervezés (borító + 1 oldalpár) pályázati arculat alapján 1 komplett tervvariáció díja (nettó Ft) | L104: Grafikai tervezés (borító + 1 oldalpár) egyéb arculat alapján 3 komplett tervvariáció díja (nettó Ft) | M104: Tördelés-szerkesztés egyszerű, 2 elektronikus korrektúraforduló lebonyolításával (nettó Ft/össz. oldal) | N104: Tördelés-szerkesztés összetett, 2 elektronikus korrektúraforduló lebonyolításával (nettó Ft/össz. oldal)
A105: Kiadvány(4) | B105: 300 | C105: Borító 250 g/m2 cyclus ofszet belív 80g/m2 cyclus ofszet | D105: A5 | E105: 4+4 | F105: 20 oldal belív + 4 oldal borító | G105: irkafűzött | I105: 72420 | J105: 4000 | K105: 5000 | L105: 15000 | M105: 15000 | N105: 20000
E106: 4+4 | F106: 28 oldal belív + 4 oldal borító | I106: 90060 | M106: 18000 | N106: 25000
E107: 4+4 | F107: 36 oldal belív + 4 oldal borító | I107: 103200 | M107: 22000 | N107: 30000
E108: 4+4 | F108: 44 oldal belív + 4 oldal borító | I108: 121800 | M108: 26000 | N108: 35000
E109: 4+4 | F109: 52 oldal belív + 4 oldal borító | I109: 134040 | M109: 30000 | N109: 40000
B110: 500 | C110: Borító 250 g/m2 cyclus ofszet belív 80g/m2 cyclus ofszet | D110: A5 | E110: 4+4 | F110: 20 oldal belív + 4 oldal borító | I110: 76750 | M110: 15000 | N110: 20000
E111: 4+4 | F111: 28 oldal belív + 4 oldal borító | I111: 96000 | M111: 18000 | N111: 25000
E112: 4+4 | F112: 36 oldal belív + 4 oldal borító | I112: 109700 | M112: 22000 | N112: 30000
E113: 4+4 | F113: 44 oldal belív + 4 oldal borító | I113: 129950 | M113: 26000 | N113: 35000
E114: 4+4 | F114: 52 oldal belív + 4 oldal borító | I114: 142700 | M114: 30000 | N114: 40000
I115: =SUM(I105:I114) -> 1076620 | J115: =SUM(J105) -> 4000 | K115: =SUM(K105) -> 5000 | L115: =SUM(L105) -> 15000 | M115: =SUM(M105:M114) -> 222000 | N115: =SUM(N105:N114) -> 300000
B116: mennyiség (db) | C116: papírminőség | D116: méret | E116: szín | F116: terjedelem | G116: konfekcionálás | H116: kötészet | I116: Nyomdai kivitelezés díja (nettó Ft/össz. db) | J116: Nyomdai előkészítés díja (nem nyomdai kompatibilis grafikai anyag esetén (nettó Ft) | K116: Egyszerű grafikai tervezés (borító + 1 oldalpár) pályázati arculat alapján 1 komplett tervvariáció díja (nettó Ft) | L116: Grafikai tervezés (borító + 1 oldalpár) egyéb arculat alapján 3 komplett tervvariáció díja (nettó Ft) | M116: Tördelés-szerkesztés egyszerű, 2 elektronikus korrektúraforduló lebonyolításával (nettó Ft/össz. oldal) | N116: Tördelés-szerkesztés összetett, 2 elektronikus korrektúraforduló lebonyolításával (nettó Ft/össz. oldal)
A117: Kiadvány(5) | B117: 300 | C117: Borító300 g/m2 műnyomó Belív 130 g/m2 műnyomó | D117: Vágott B5 (pontos mérettől függetlenül) | E117: Borító 4+4 Belív 1+1 (fekete) | F117: Belív 12 oldal Borító 4 oldal | G117: Borító matt fóliázva | H117: irkafűzött | I117: 46800 | J117: 4000 | K117: 5000 | L117: 15000 | M117: 8000 | N117: 12000
F118: Belív 20 oldal Borító 4 oldal | I118: 53580 | M118: 15000 | N118: 20000
F119: Belív 28 oldal Borító 4 oldal | I119: 60360 | M119: 22000 | N119: 28000
F120: Belív 36 oldal Borító 4 oldal | I120: 69600 | M120: 32000 | N120: 38000
E121: Borító 4+4 Belív 4+4 | F121: Belív 12 oldal Borító 4 oldal | I121: 65100 | M121: 8000 | N121: 12000
F122: Belív 16 oldal Borító 4 oldal | I122: 68400 | M122: 12000 | N122: 16000
F123: Belív 20 oldal Borító 4 oldal | I123: 76470 | M123: 15000 | N123: 20000
F124: Belív 24 oldal Borító 4 oldal | I124: 82950 | M124: 18000 | N124: 24000
F125: Belív 28 oldal Borító 4 oldal | I125: 95460 | M125: 22000 | N125: 28000
F126: Belív 32 oldal Borító 4 oldal | I126: 94800 | M126: 26000 | N126: 32000
F127: Belív 36 oldal Borító 4 oldal | I127: 108180 | M127: 32000 | N127: 38000
B128: 500 | C128: Borító300 g/m2 műnyomó Belív 130 g/m2 műnyomó | D128: Vágott B5 (pontos mérettől függetlenül) | E128: Borító 4+4 Belív 1+1 (fekete) | F128: Belív 12 oldal Borító 4 oldal | G128: Borító matt fóliázva | H128: irkafűzött | I128: 55200 | M128: 8000 | N128: 12000
F129: Belív 20 oldal Borító 4 oldal | I129: 64200 | M129: 15000 | N129: 20000
F130: Belív 28 oldal Borító 4 oldal | I130: 75500 | M130: 22000 | N130: 28000
F131: Belív 36 oldal Borító 4 oldal | I131: 85150 | M131: 32000 | N131: 38000
E132: Borító 4+4 Belív 4+4 | F132: Belív 12 oldal Borító 4 oldal | I132: 71250 | M132: 8000 | N132: 12000
F133: Belív 16 oldal Borító 4 oldal | I133: 71300 | M133: 12000 | N133: 16000
F134: Belív 20 oldal Borító 4 oldal | I134: 83700 | M134: 15000 | N134: 20000
F135: Belív 24 oldal Borító 4 oldal | I135: 90850 | M135: 18000 | N135: 24000
F136: Belív 28 oldal Borító 4 oldal | I136: 102350 | M136: 22000 | N136: 28000
F137: Belív 32 oldal Borító 4 oldal | I137: 112500 | M137: 26000 | N137: 32000
F138: Belív 36 oldal Borító 4 oldal | I138: 118400 | M138: 32000 | N138: 38000
B139: 1000 | C139: Borító300 g/m2 műnyomó Belív 130 g/m2 műnyomó | D139: Vágott B5 (pontos mérettől függetlenül) | E139: Borító 4+4 Belív 1+1 (fekete) | F139: Belív 12 oldal Borító 4 oldal | G139: Borító matt fóliázva | H139: irkafűzött | I139: 74200 | M139: 8000 | N139: 12000
F140: Belív 20 oldal Borító 4 oldal | I140: 86200 | M140: 15000 | N140: 20000
F141: Belív 28 oldal Borító 4 oldal | I141: 104600 | M141: 22000 | N141: 28000
F142: Belív 36 oldal Borító 4 oldal | I142: 119600 | M142: 32000 | N142: 38000
E143: Borító 4+4 Belív 4+4 | F143: Belív 12 oldal Borító 4 oldal | I143: 89200 | M143: 8000 | N143: 12000
F144: Belív 16 oldal Borító 4 oldal | I144: 89300 | M144: 12000 | N144: 16000
F145: Belív 20 oldal Borító 4 oldal | I145: 105400 | M145: 15000 | N145: 20000
F146: Belív 24 oldal Borító 4 oldal | I146: 114300 | M146: 18000 | N146: 24000
F147: Belív 28 oldal Borító 4 oldal | I147: 132600 | M147: 22000 | N147: 28000
F148: Belív 32 oldal Borító 4 oldal | I148: 132800 | M148: 26000 | N148: 32000
F149: Belív 36 oldal Borító 4 oldal | I149: 152500 | M149: 32000 | N149: 38000
I150: =SUM(I117:I149) -> 2952800 | J150: =SUM(J117) -> 4000 | K150: =SUM(K117) -> 5000 | L150: =SUM(L117) -> 15000 | M150: =SUM(M117:M149) -> 630000 | N150: =SUM(N117:N149) -> 804000
B151: mennyiség (db) | C151: DVD rész megnevezés | D151: papírminőség | E151: méret | F151: szín | G151: terjedelem | H151: megjegyzés | I151: Nyomdai kivitelezés díja (nettó Ft/össz. db) | J151: Alapterv/mester dvd készítés díja (nettó Ft/alkalom) | K151: Szerkesztés, tördelés díja (nettó Ft/alkalom)
A152: DVD garnitúra, számítógépes és asztali DVD lejátszón elinduló tartalommal | B152: 150 | C152: CD papírtok borító nyomás | E152: kiterített méret: 245*153 mm gerincméret: nincs | F152: 4+4 | H152: írásbeli szempontrendszer alapján, mester DVD előállítása menürendszerrel. Mpeg, avi, pdf stb... fileok felhasználásával, 5 menüpont kialakításával és tartalmi feltöltésével, mester dvd előállítása, dvd tartalom szerkesztése | I152: 30540 | J152: 80000 | K152: 15000
C153: DVD felület nyomtatás és sokszorosítás | F153: 4+0 | I153: 27187.5 | K153: 1500
C154: DVD garnitúra összeállítása | I154: 3500
B155: 200 | C155: CD papírtok borító nyomás | E155: kiterített méret: 245*153 mm gerincméret: nincs | F155: 4+4 | H155: írásbeli szempontrendszer alapján, mester DVD előállítása menürendszerrel. Mpeg, avi, pdf stb... fileok felhasználásával, 5 menüpont kialakításával és tartalmi feltöltésével, mester dvd előállítása, dvd tartalom szerkesztése | I155: 32800 | J155: 80000 | K155: 15000
C156: DVD felület nyomtatás és sokszorosítás | F156: 4+0 | I156: 34750 | K156: 1500
C157: DVD garnitúra összeállítása | I157: 5000
B158: 300 | C158: CD papírtok borító nyomás | E158: kiterített méret: 245*153 mm gerincméret: nincs | F158: 4+4 | H158: írásbeli szempontrendszer alapján, mester DVD előállítása menürendszerrel. Mpeg, avi, pdf stb... fileok felhasználásával, 5 menüpont kialakításával és tartalmi feltöltésével, mester dvd előállítása, dvd tartalom szerkesztése | I158: 36570 | J158: 80000 | K158: 15000
C159: DVD felület nyomtatás és sokszorosítás | F159: 4+0 | I159: 41700 | K159: 1500
C160: DVD garnitúra összeállítása | I160: 7000
B161: 500 | C161: CD papírtok borító nyomás | E161: kiterített méret: 245*153 mm gerincméret: nincs | F161: 4+4 | H161: írásbeli szempontrendszer alapján, mester DVD előállítása menürendszerrel. Mpeg, avi, pdf stb... fileok felhasználásával, 5 menüpont kialakításával és tartalmi feltöltésével, mester dvd előállítása, dvd tartalom szerkesztése | I161: 44550 | J161: 80000 | K161: 15000
C162: DVD felület nyomtatás és sokszorosítás | F162: 4+0 | I162: 80625 | K162: 1500
C163: DVD garnitúra összeállítása | I163: 10000
B164: 1000 | C164: CD papírtok borító nyomás | E164: kiterített méret: 245*153 mm gerincméret: nincs | F164: 4+4 | H164: írásbeli szempontrendszer alapján, mester DVD előállítása menürendszerrel. Mpeg, avi, pdf stb... fileok felhasználásával, 5 menüpont kialakításával és tartalmi feltöltésével, mester dvd előállítása, dvd tartalom szerkesztése | I164: 54500 | J164: 80000 | K164: 15000
C165: DVD felület nyomtatás és sokszorosítás | F165: 4+0 | I165: 152500 | K165: 1500
C166: DVD garnitúra összeállítása | I166: 15000
B167: 1500 | C167: CD papírtok borító nyomás | E167: kiterített méret: 245*153 mm gerincméret: nincs | F167: 4+4 | H167: írásbeli szempontrendszer alapján, mester DVD előállítása menürendszerrel. Mpeg, avi, pdf stb... fileok felhasználásával, 5 menüpont kialakításával és tartalmi feltöltésével, mester dvd előállítása, dvd tartalom szerkesztése | I167: 44550 | J167: 80000 | K167: 15000
C168: DVD felület nyomtatás és sokszorosítás | F168: 4+0 | I168: 210000 | K168: 1500
C169: DVD garnitúra összeállítása | I169: 20000
I170: =SUM(I152:I169) -> 850772.5 | J170: =SUM(J152:J169) -> 480000 | K170: =SUM(K152:K169) -> 99000
B171: mennyiség (db) | C171: CD rész megnevezés | D171: papírminőség | E171: méret | F171: szín | G171: terjedelem | H171: megjegyzés | I171: Nyomdai kivitelezés díja (nettó Ft/össz. db) | J171: Alapterv/mester dvd készítés díja (nettó Ft/alkalom) | K171: Szerkesztés, tördelés díja (nettó Ft/alkalom)
A172: Különböző anyagok CD-n való megjelentetése és sokszorosítása | B172: 500 | C172: CD borító előlap nyomás | D172: 115g/m2 műnyomó | E172: 115*115 mm | F172: Előlap: 4+4 | G172: 2*1 oldal | H172: írásbeli szempontrendszer alapján, mester CD előállítása menürendszerrel. Mpeg, avi, pdf stb... fileok felhasználásával, max. 5 menüponttal, mester cd előállítása, cd tartalom szerkesztése, menürendszer létrehozása html, flash html felhasználásával | I172: 8100 | J172: 80000 | K172: 15000
C173: CD felület nyomtatás és sokszorosítás | F173: 4+0 | I173: 78125 | K173: 1500
C174: CD slim tok | I174: 24375
C175: CD garnitúra összeállítása | I175: 10000
B176: 1000 | C176: CD borító előlap nyomás | D176: 115g/m2 műnyomó | E176: 115*115 mm | F176: Előlap: 4+4 | G176: 2*1 oldal | H176: írásbeli szempontrendszer alapján, mester CD előállítása menürendszerrel. Mpeg, avi, pdf stb... fileok felhasználásával, max. 5 menüponttal, mester cd előállítása, cd tartalom szerkesztése, menürendszer létrehozása html, flash html felhasználásával | I176: 14300 | J176: 80000 | K176: 15000
C177: CD felület nyomtatás és sokszorosítás | F177: 4+0 | I177: 143750 | K177: 1500
C178: CD slim tok | I178: 48750
C179: CD garnitúra összeállítása | I179: 15000
I180: =SUM(I172:I179) -> 342400 | J180: =SUM(J172:J179) -> 160000 | K180: =SUM(K172,K173,K176,K177) -> 33000
B181: mennyiség (db) | C181: papírminőség | D181: méret | E181: szín | F181: terjedelem | G181: kötészet | I181: Nyomdai kivitelezés díja (nettó Ft/össz. db) | J181: Szerkesztés, tördelés díja (nettó Ft)
A182: Etikett | B182: 168 | C182: matt öntapadó | D182: 70*35 mm | E182: 4+0 | F182: 7 ív | G182: A4-es íven szállítva, riztelve | I182: 4872 | J182: 1000
B183: 336 | C183: matt öntapadó | D183: 70*35 mm | E183: 4+0 | F183: 14 ív | G183: A4-es íven szállítva, riztelve | I183: 5376 | J183: 1000
B184: 672 | C184: matt öntapadó | D184: 70*35 mm | E184: 4+0 | F184: 28 ív | G184: A4-es íven szállítva, riztelve | I184: 6048 | J184: 1000
B185: 1344 | C185: matt öntapadó | D185: 70*35 mm | E185: 4+0 | F185: 42 ív | G185: A4-es íven szállítva, riztelve | I185: 7258 | J185: 1000
I186: =SUM(I182:I185) -> 23554 | J186: =SUM(J182:J185) -> 4000
B187: mennyiség (db) | C187: papírminőség | D187: méret | E187: szín | F187: terjedelem | G187: kötészet | I187: Nyomdai kivitelezés díja (nettó Ft/össz. db) | J187: Nyomdai előkészítés díja (ppt vagy egyéb nem nyomdai kompatibilis grafikai anyag esetén (nettó Ft) | K187: Egyszerű gafikai tervezés, szerkesztés díja (1 komplett tervvariáció) (nettó Ft)
A188: Jegyzettömb | B188: 100 | C188: 80 g/m2 ofszet | D188: A4 | E188: 2+0 | F188: 10 lap | G188: enyvezve | I188: 21220 | J188: 4000 | K188: 5000
F189: 20 lap | G189: enyvezve | I189: 23130
F190: 50 lap | G190: enyvezve | I190: 34450
E191: 4+0 | F191: 10 lap | G191: enyvezve | I191: 20730
F192: 20 lap | G192: enyvezve | I192: 22630
F193: 50 lap | G193: enyvezve | I193: 32170
D194: A5 | E194: 2+0 | F194: 10 lap | G194: enyvezve | I194: 20060
F195: 20 lap | G195: enyvezve | I195: 20920
F196: 50 lap | G196: enyvezve | I196: 24540
E197: 4+0 | F197: 10 lap | G197: enyvezve | I197: 19560
F198: 20 lap | G198: enyvezve | I198: 20420
F199: 50 lap | G199: enyvezve | I199: 24050
B200: 300 | C200: 80 g/m2 ofszet | D200: A4 | E200: 2+0 | F200: 10 lap | G200: enyvezve | I200: 28290
... 67 more rows
